fUSD/lending_fUSD_20250826
["ID","MTS","AMOUNT","RATE_DAILY","PERIOD"]
[381497869,1756235438256,-115.55536586,0.00019021,2]
[381497870,1756235438265,-153.0,0.00019021,2]
[381497871,1756235438275,-153.0,0.00019021,2]
[381497872,1756235438284,-153.0,0.00019021,2]
[381497873,1756235438294,-233.0,0.00019022,2]
[381497874,1756235438303,-233.0,0.00019022,2]
[381497875,1756235438313,-233.0,0.00019022,2]
[381497876,1756235438323,-64.92447005,0.00019022,2]
[381497877,1756235438335,-168.07552995,0.00019022,2]
[381497878,1756235438345,-233.0,0.00019022,2]
[381497879,1756235438355,-233.0,0.00019022,2]
[381497880,1756235438363,-233.0,0.00019022,2]
[381497881,1756235438372,-233.0,0.00019022,2]
[381497882,1756235438381,-233.0,0.00019022,2]
[381497883,1756235438391,-233.0,0.00019022,2]
[381497884,1756235438400,-233.0,0.00019022,2]
[381497885,1756235438410,-233.0,0.00019022,2]
[381497886,1756235438420,-233.0,0.00019022,2]
[381497887,1756235438429,-143.94250395,0.00019022,2]
[381497888,1756235438453,-89.05749605,0.00019022,2]
[381497889,1756235438462,-500.0,0.00019026,2]
[381497890,1756235438472,-153.0,0.00019029,2]
[381497891,1756235438481,-153.0,0.00019029,2]
[381497892,1756235438490,-153.0,0.00019029,2]
[381497894,1756235438499,-153.0,0.00019029,2]
[381497896,1756235438509,-153.0,0.00019029,2]
[381497898,1756235438518,-153.0,0.00019029,2]
[381497900,1756235438528,-153.0,0.00019029,2]
[381497902,1756235438537,-153.0,0.00019029,2]
[381497904,1756235438547,-153.0,0.00019029,2]
[381497907,1756235438556,-153.0,0.00019029,2]
[381497910,1756235438565,-153.0,0.00019029,2]
[381497912,1756235438576,-153.0,0.00019029,2]
[381497914,1756235438585,-153.0,0.00019029,2]
[381497916,1756235438594,-233.0,0.0001903,2]
[381497918,1756235438604,-233.0,0.0001903,2]
[381497920,1756235438614,-233.0,0.0001903,2]
[381497922,1756235438623,-233.0,0.0001903,2]
[381497924,1756235438632,-233.0,0.0001903,2]
[381497926,1756235438640,-233.0,0.0001903,2]
[381497928,1756235438649,-233.0,0.0001903,2]
[381497930,1756235438658,-233.0,0.0001903,2]
[381497932,1756235438668,-233.0,0.0001903,2]
[381497934,1756235438678,-233.0,0.0001903,2]
[381497936,1756235438689,-233.0,0.0001903,2]
[381497938,1756235438700,-233.0,0.0001903,2]
[381497940,1756235438711,-233.0,0.0001903,2]
[381497942,1756235438720,-233.0,0.0001903,2]
[381497944,1756235438730,-153.0,0.00019037,2]
[381497946,1756235438741,-153.0,0.00019037,2]
[381497948,1756235438753,-153.0,0.00019037,2]
[381497950,1756235438763,-153.0,0.00019037,2]
[381497952,1756235438774,-153.0,0.00019037,2]
[381497954,1756235438784,-153.0,0.00019037,2]
[381497955,1756235438793,-153.0,0.00019037,2]
[381497956,1756235438803,-153.0,0.00019037,2]
[381497957,1756235438813,-153.0,0.00019037,2]
[381497958,1756235438823,-153.0,0.00019037,2]
[381497959,1756235438832,-153.0,0.00019037,2]
[381497960,1756235438842,-153.0,0.00019037,2]
[381497961,1756235438851,-153.0,0.00019037,2]
[381497962,1756235438860,-233.0,0.00019038,2]
[381497963,1756235438870,-233.0,0.00019038,2]
[381497964,1756235438879,-233.0,0.00019038,2]
[381497965,1756235438888,-233.0,0.00019038,2]
[381497966,1756235438897,-233.0,0.00019038,2]
[381497967,1756235438906,-233.0,0.00019038,2]
[381497968,1756235438916,-233.0,0.00019038,2]
[381497969,1756235438927,-233.0,0.00019038,2]
[381497970,1756235438939,-233.0,0.00019038,2]
[381497971,1756235438950,-233.0,0.00019038,2]
[381497972,1756235438959,-233.0,0.00019038,2]
[381497973,1756235438970,-233.0,0.00019038,2]
[381497974,1756235438979,-233.0,0.00019038,2]
[381497975,1756235438989,-233.0,0.00019038,2]
[381497976,1756235438998,-153.0,0.00019045,2]
[381497977,1756235439008,-153.0,0.00019045,2]
[381497978,1756235439018,-153.0,0.00019045,2]
[381497979,1756235439032,-153.0,0.00019045,2]
[381497980,1756235439048,-153.0,0.00019045,2]
[381497981,1756235439058,-153.0,0.00019045,2]
[381497982,1756235439067,-153.0,0.00019045,2]
[381497983,1756235439079,-153.0,0.00019045,2]
[381497984,1756235439088,-153.0,0.00019045,2]
[381497985,1756235439097,-153.0,0.00019045,2]
[381497986,1756235439107,-153.0,0.00019045,2]
[381497987,1756235439118,-153.0,0.00019045,2]
[381497988,1756235439127,-153.0,0.00019045,2]
[381497989,1756235439136,-233.0,0.00019046,2]
[381497990,1756235439145,-233.0,0.00019046,2]
[381497991,1756235439154,-233.0,0.00019046,2]
[381497992,1756235439164,-233.0,0.00019046,2]
[381497993,1756235439173,-233.0,0.00019046,2]
[381497994,1756235439182,-233.0,0.00019046,2]
[381497995,1756235439192,-233.0,0.00019046,2]
[381497996,1756235439202,-233.0,0.00019046,2]
[381497997,1756235439211,-233.0,0.00019046,2]
[381497998,1756235439221,-233.0,0.00019046,2]
[381497999,1756235439230,-233.0,0.00019046,2]
[381498000,1756235439240,-233.0,0.00019046,2]
[381498001,1756235439249,-233.0,0.00019046,2]
[381498002,1756235439259,-233.0,0.00019046,2]
[381498003,1756235439268,-151.0,0.00019084,2]
[381498004,1756235439277,-500.0,0.00019084,2]
[381498005,1756235439286,-500.0,0.00019111,2]
[381498006,1756235439295,-500.0,0.00019111,2]
[381498007,1756235439305,-1609.0,0.00019111,2]
[381498008,1756235439314,-500.0,0.00019111,2]
[381498009,1756235439323,-150.0,0.00019111,2]
[381498010,1756235439333,-150.0,0.00019111,2]
[381498011,1756235439342,-150.5876774,0.00019111,2]
[381498012,1756235439351,-1008.0,0.00019127,2]
[381498013,1756235439361,-150.0,0.00019127,2]
[381498014,1756235439370,-150.0,0.00019127,2]
[381498015,1756235439379,-150.81171262,0.00019127,2]
[381498016,1756235439389,-150.0,0.00019127,2]
[381498017,1756235439398,-150.0,0.00019127,2]
[381498018,1756235439407,-150.0,0.00019127,2]
[381498019,1756235439417,-300.0,0.00019127,2]
[381498020,1756235439426,-150.0,0.00019127,2]
[381498021,1756235439435,-500.0,0.00019127,2]
[381498022,1756235439445,-150.0,0.00019127,2]
[381498023,1756235439454,-500.0,0.00019127,2]
[381498024,1756235439463,-150.0,0.00019127,2]
[381498025,1756235439472,-500.0,0.00019127,2]
[381498026,1756235439482,-500.0,0.00019127,2]
[381498027,1756235439491,-500.0,0.00019139,2]
[381498028,1756235439500,-151.0,0.00019178,2]
[381498029,1756235439511,-150.0,0.00019178,2]
[381498030,1756235439522,-500.0,0.00019194,2]
[381498031,1756235439532,-500.0,0.00019385,2]
[381498032,1756235439541,-500.0,0.00019385,2]
[381498033,1756235439550,-1609.0,0.00019385,2]
[381498034,1756235439560,-500.0,0.00019385,2]
[381498035,1756235439570,-244.62922093,0.00019385,2]
[381498036,1756235439581,-150.0,0.00019385,2]
[381498037,1756235439590,-973.83883106,0.00019401,2]
[381498045,1756235440928,-34.16116894,0.00019401,2]
[381498046,1756235440938,-150.0,0.00019401,2]
[381498047,1756235440948,-150.0,0.00019401,2]
[381498048,1756235440958,-150.0,0.00019401,2]
[381498049,1756235440967,-150.0,0.00019401,2]
[381498050,1756235440976,-300.0,0.00019401,2]
[381498051,1756235440986,-500.0,0.00019401,2]
[381498052,1756235440995,-500.0,0.00019401,2]
[381498053,1756235441004,-500.0,0.00019401,2]
[381498054,1756235441014,-500.0,0.00019401,2]
[381498055,1756235441024,-1000.0,0.00019452,2]
[381498056,1756235441036,-1000.0,0.00019452,2]
[381498057,1756235441046,-1000.0,0.00019452,2]
[381498058,1756235441055,-1000.0,0.00019452,2]
[381498059,1756235441065,-491.07179834,0.00019452,2]
[381498060,1756235441075,-398.0,0.00019656,2]
[381498061,1756235441086,-500.0,0.00019659,2]
[381498062,1756235441095,-600.0,0.00019659,2]
[381498063,1756235441105,-1609.0,0.00019659,2]
[381498064,1756235441115,-150.0,0.00019659,2]
[381498065,1756235441125,-150.0,0.00019659,2]
[381498066,1756235441135,-1008.0,0.00019675,2]
[381498067,1756235441144,-243.32979931,0.00019675,2]
[381498068,1756235441154,-200.0,0.00019675,2]
[381498069,1756235441163,-213.76846305,0.00019675,2]
[381498070,1756235441172,-150.0,0.00019675,2]
[381498071,1756235441182,-300.0,0.00019675,2]
[381498072,1756235441192,-500.0,0.00019675,2]
[381498073,1756235441201,-500.0,0.00019675,2]
[381498074,1756235441210,-500.0,0.00019675,2]
[381498075,1756235441219,-500.0,0.00019675,2]
[381498076,1756235441228,-150.0,0.0001969,2]
[381498077,1756235441238,-150.0,0.0001969,2]
[381498078,1756235441247,-2500.0,0.0001969,2]
[381498079,1756235441257,-150.0,0.0001969,2]
[381498080,1756235441266,-250.0,0.0001969,2]
[381498081,1756235441275,-1000.0,0.0001969,3]
[381498082,1756235441284,-204.0,0.0001969,2]
[381498083,1756235441293,-156.587,0.00019726,2]
[381498084,1756235441303,-1680.0,0.00019753,2]
[381498085,1756235441312,-268.25,0.00019863,2]
[381498086,1756235441321,-500.0,0.00019933,2]
[381498087,1756235441331,-1609.0,0.00019933,2]
[381498088,1756235441341,-150.0,0.00019933,2]
[381498089,1756235441350,-1008.0,0.00019949,2]
[381498090,1756235441359,-150.0,0.00019949,2]
[381498091,1756235441368,-500.0,0.00019949,2]
[381498092,1756235441378,-500.0,0.00019949,2]
[381498093,1756235441387,-500.0,0.00019949,2]
[381498094,1756235441397,-500.0,0.00019949,2]
[381498095,1756235441406,-245.99,0.00020187,2]
[381498096,1756235441415,-500.0,0.00020207,2]
[381498097,1756235441424,-1609.0,0.00020207,2]
[381498098,1756235441433,-250.0,0.00020207,2]
[381498099,1756235441443,-1008.0,0.00020223,2]
[381498100,1756235441452,-148.08895353,0.00020223,2]
[381498101,1756235441468,-1.91104647,0.00020223,2]
[381498102,1756235441477,-221.52780352,0.00020223,2]
[381498103,1756235441487,-500.0,0.00020223,2]
[381498104,1756235441496,-24.83008568,0.00020223,2]
[381498105,1756235441507,-475.16991432,0.00020223,2]
[381498106,1756235441516,-500.0,0.00020223,2]
[381498107,1756235441526,-162.380719,0.00020274,2]
[381498108,1756235441535,-214.33830336,0.00020481,2]
[381498109,1756235441566,-285.66169664,0.00020481,2]
[381498110,1756235441576,-102.52021454,0.00020481,2]
[381498111,1756235441594,-1506.47978546,0.00020481,2]
[381498112,1756235441604,-1008.0,0.00020497,2]
[381498113,1756235441614,-241.730891,0.00020497,2]
[381498114,1756235441624,-551.22254815,0.00020497,2]
[381498115,1756235441633,-500.0,0.00020497,2]
[381498116,1756235441643,-500.0,0.00020497,2]
[381498117,1756235441652,-500.0,0.00020755,2]
[381498118,1756235441662,-1609.0,0.00020755,2]
[381498119,1756235441671,-1008.0,0.00020771,2]
[381498120,1756235441681,-500.0,0.00020771,2]
[381498121,1756235441691,-500.0,0.00020771,2]
[381498122,1756235441701,-168.3888056,0.00020822,2]
[381498123,1756235441710,-498.91294017,0.00021007,2]
[381498124,1756235442579,-501.08705983,0.00021007,2]
[381498125,1756235442590,-500.0,0.00021029,2]
[381498126,1756235442600,-1609.0,0.00021029,2]
[381498127,1756235442610,-1008.0,0.00021045,2]
[381498128,1756235442619,-500.0,0.00021045,2]
[381498129,1756235442629,-131.91294017,0.00021045,2]
[381498130,1756235442667,-368.08705983,0.00021045,2]
[381498131,1756235442677,-500.0,0.00021303,2]
[381498132,1756235442687,-1609.0,0.00021303,2]
[381498133,1756235442696,-1008.0,0.00021319,2]
[381498134,1756235442704,-500.0,0.00021319,2]
[381498135,1756235442713,-500.0,0.00021319,2]
[381498136,1756235442723,-174.61919141,0.0002137,2]
[381498137,1756235442732,-500.0,0.00021577,2]
[381498138,1756235442741,-1609.0,0.00021577,2]
[381498139,1756235442750,-1008.0,0.00021593,2]
[381498140,1756235442760,-500.0,0.00021593,2]
[381498141,1756235442771,-500.0,0.00021593,2]
[381498142,1756235442780,-600.0,0.00021616,2]
[381498143,1756235442791,-1217.0,0.00021658,2]
[381498144,1756235442800,-150.0,0.00021795,2]
[381498145,1756235442810,-151.31,0.00021819,2]
[381498146,1756235442819,-150.38,0.00021819,2]
[381498147,1756235442828,-151.36,0.00021819,2]
[381498148,1756235442838,-150.71,0.00021819,2]
[381498149,1756235442847,-152.41,0.00021819,2]
[381498150,1756235442857,-151.08,0.00021819,2]
[381498151,1756235442867,-150.6,0.00021819,2]
[381498152,1756235442876,-151.18,0.0002182,2]
[381498153,1756235442888,-151.1,0.0002182,2]
[381498154,1756235442898,-151.27,0.0002182,2]
[381498155,1756235442909,-500.0,0.00021851,2]
[381498156,1756235442919,-1609.0,0.00021851,2]
[381498157,1756235442929,-1008.0,0.00021867,2]
[381498158,1756235442940,-500.0,0.00021867,2]
[381498159,1756235442950,-500.0,0.00021867,2]
[381498160,1756235442960,-500.0,0.00021918,2]
[381498161,1756235442970,-181.08010149,0.00021918,2]
[381498162,1756235442979,-151.88,0.0002192,2]
[381498163,1756235442989,-152.47,0.0002192,2]
[381498164,1756235442999,-150.69,0.0002192,2]
[381498165,1756235443008,-1182.23,0.000221,2]
[381498166,1756235443018,-500.0,0.00022125,2]
[381498167,1756235443027,-1609.0,0.00022125,2]
[381498168,1756235443039,-1008.0,0.00022141,2]
[381498169,1756235443049,-500.0,0.00022141,2]
[381498170,1756235443059,-500.0,0.00022141,2]
[381498171,1756235443068,-600.0,0.00022164,2]
[381498172,1756235443080,-500.0,0.00022192,2]
[381498173,1756235443090,-500.0,0.00022399,2]
[381498174,1756235443099,-1609.0,0.00022399,2]
[381498175,1756235443109,-1008.0,0.00022415,2]
[381498176,1756235443123,-154.21471449,0.00022415,2]
[381498177,1756235443132,-500.0,0.00022415,2]
[381498178,1756235443142,-500.0,0.00022466,2]
[381498179,1756235443151,-187.78006525,0.00022466,2]
[381498180,1756235443161,-500.0,0.00022673,2]
[381498181,1756235443171,-1609.0,0.00022673,2]
[381498182,1756235443182,-1008.0,0.00022689,2]
[381498183,1756235443192,-500.0,0.00022689,2]
[381498184,1756235443202,-600.0,0.00022712,2]
[381498185,1756235443212,-400.0,0.0002274,2]
[381498186,1756235443222,-500.0,0.00022947,2]
[381498187,1756235443232,-1609.0,0.00022947,2]
[381498188,1756235443242,-166.81513595,0.0002295,2]
[381498189,1756235443251,-1008.0,0.00022963,2]
[381498190,1756235443262,-500.0,0.00022963,2]
[381498191,1756235443271,-150.82,0.0002297,2]
[381498192,1756235443281,-1457.63,0.00023,2]
[381498193,1756235443291,-194.72792766,0.00023014,2]
[381498194,1756235443301,-268.25,0.00023038,2]
[381498195,1756235443310,-1329.44524274,0.00023096,2]
[381498196,1756235443320,-150.0,0.00023165,2]
[381498197,1756235443330,-500.0,0.00023221,2]
[381498198,1756235443340,-1609.0,0.00023221,2]
[381498200,1756235443351,-1008.0,0.00023237,2]
[381498201,1756235443363,-500.0,0.00023237,2]
[381498202,1756235443372,-600.0,0.0002326,2]
[381498203,1756235443383,-2175.88,0.00023279,2]
[381498204,1756235443393,-150.0,0.00023288,2]
[381498205,1756235443402,-160.0,0.00023441,2]
[381498206,1756235443413,-458.7662338,0.00023441,2]
[381498207,1756235443422,-1182.23,0.00023445,2]
[381498208,1756235443431,-844.63891918,0.0002345,2]
[381498209,1756235443442,-160.0,0.0002345,2]
[381498210,1756235443463,-212.18043798,0.0002345,2]
[381498211,1756235443473,-153.0,0.00023493,2]
[381498212,1756235443485,-153.0,0.00023493,2]
[381498213,1756235443494,-153.0,0.00023493,2]
[381498214,1756235443504,-153.0,0.00023493,2]
[381498215,1756235443514,-153.0,0.00023493,2]
[381498216,1756235443524,-153.0,0.00023493,2]
[381498217,1756235443534,-153.0,0.00023493,2]
[381498218,1756235443544,-153.0,0.00023493,2]
[381498219,1756235443554,-153.0,0.00023493,2]
[381498220,1756235443564,-153.0,0.00023493,2]
[381498221,1756235443573,-153.0,0.00023493,2]
[381498222,1756235443583,-153.0,0.00023493,2]
[381498223,1756235443592,-153.0,0.00023493,2]
[381498224,1756235443602,-500.0,0.00023495,2]
[381498225,1756235443613,-1609.0,0.00023495,2]
[381498226,1756235443623,-233.0,0.00023501,2]
[381498227,1756235443633,-233.0,0.00023501,2]
[381498228,1756235443643,-233.0,0.00023501,2]
[381498229,1756235443654,-233.0,0.00023501,2]
[381498230,1756235443663,-233.0,0.00023501,2]
[381498231,1756235443674,-233.0,0.00023501,2]
[381498232,1756235443683,-233.0,0.00023501,2]
[381498233,1756235443694,-233.0,0.00023501,2]
[381498234,1756235443703,-233.0,0.00023501,2]
[381498235,1756235443713,-233.0,0.00023501,2]
[381498236,1756235443723,-233.0,0.00023501,2]
[381498237,1756235443733,-233.0,0.00023501,2]
[381498238,1756235443742,-233.0,0.00023501,2]
[381498239,1756235443752,-233.0,0.00023501,2]
[381498240,1756235443761,-1008.0,0.00023511,2]
[381498241,1756235443773,-500.0,0.00023511,2]
[381498242,1756235443783,-153.0,0.00023525,2]
[381498244,1756235443793,-153.0,0.00023525,2]
[381498245,1756235443803,-153.0,0.00023525,2]
[381498247,1756235443814,-153.0,0.00023525,2]
[381498249,1756235443824,-153.0,0.00023525,2]
[381498251,1756235443834,-153.0,0.00023525,2]
[381498253,1756235443844,-153.0,0.00023525,2]
[381498255,1756235443853,-153.0,0.00023525,2]
[381498256,1756235443863,-153.0,0.00023525,2]
[381498257,1756235443873,-153.0,0.00023525,2]
[381498258,1756235443882,-153.0,0.00023525,2]
[381498259,1756235443892,-233.0,0.00023531,2]
[381498260,1756235443902,-233.0,0.00023531,2]
[381498262,1756235443911,-233.0,0.00023531,2]
[381498264,1756235443920,-233.0,0.00023531,2]
[381498265,1756235443930,-233.0,0.00023531,2]
[381498267,1756235443939,-233.0,0.00023531,2]
[381498269,1756235443949,-233.0,0.00023531,2]
[381498271,1756235443959,-233.0,0.00023531,2]
[381498273,1756235443968,-233.0,0.00023531,2]
[381498275,1756235443978,-233.0,0.00023531,2]
[381498276,1756235443988,-233.0,0.00023531,2]
[381498277,1756235443997,-233.0,0.00023531,2]
[381498278,1756235444007,-233.0,0.00023531,2]
[381498279,1756235444019,-359.22,0.00023562,7]
[381498280,1756235444029,-157.02171653,0.00023562,2]
[381498281,1756235444044,-1000.0,0.00023633,2]
[381498282,1756235444053,-250.0,0.00023652,2]
[381498283,1756235444063,-152.8756139,0.00023716,2]
[381498284,1756235444074,-403.31216877,0.00023716,2]
[381498285,1756235444084,-369.88,0.00023726,2]
[381498286,1756235444094,-500.0,0.00023769,2]
[381498287,1756235444104,-1609.0,0.00023769,2]
[381498288,1756235444116,-1008.0,0.00023785,2]
[381498289,1756235444126,-500.0,0.00023785,2]
[381498290,1756235444137,-500.0,0.00023808,2]
[381498291,1756235444147,-150.0,0.00023808,2]
[381498292,1756235444158,-150.0,0.00023808,2]
[381498293,1756235444169,-500.0,0.00023808,2]
[381498294,1756235444179,-150.0,0.00023808,2]
[381498295,1756235444189,-150.0,0.00023808,2]
[381498296,1756235444201,-500.0,0.00023808,2]
[381498297,1756235444210,-500.0,0.00023808,2]
[381498298,1756235444220,-600.0,0.00023808,2]
[381498299,1756235444230,-151.0,0.00023836,2]
[381498300,1756235444239,-150.0,0.00023861,2]
[381498301,1756235444249,-150.0,0.00023861,2]
[381498302,1756235444259,-500.0,0.00023861,2]
[381498303,1756235444269,-150.0,0.00023861,2]
[381498304,1756235444280,-500.0,0.00023861,2]
[381498305,1756235444289,-500.0,0.00023861,2]
[381498306,1756235444299,-150.0,0.00023861,2]
[381498307,1756235444309,-150.0,0.00023861,2]
[381498308,1756235444318,-150.0,0.00023861,2]
[381498309,1756235444328,-150.41158014,0.00023861,2]
[381498310,1756235444338,-150.0,0.00023861,2]
[381498311,1756235444347,-500.0,0.00023861,2]
[381498312,1756235444359,-5000.0,0.0002387,2]
[381498313,1756235444369,-160.0,0.0002401,7]
[381498314,1756235444378,-557.78840962,0.00024043,2]
[381498315,1756235444388,-1609.0,0.00024043,2]
[381498316,1756235444398,-1008.0,0.00024059,2]
[381498317,1756235444407,-500.0,0.00024082,2]
[381498318,1756235444417,-150.0,0.00024082,2]
[381498319,1756235444428,-500.0,0.00024082,2]
[381498320,1756235444437,-150.0,0.00024082,2]
[381498321,1756235444450,-254.88667299,0.00024082,2]
[381498322,1756235444460,-500.0,0.00024082,2]
[381498323,1756235444469,-500.0,0.00024082,2]
[381498324,1756235444479,-150.0,0.00024135,2]
[381498325,1756235444488,-500.0,0.00024135,2]
[381498326,1756235444499,-150.0,0.00024135,2]
[381498327,1756235444509,-500.0,0.00024135,2]
[381498328,1756235444519,-500.0,0.00024135,2]
[381498329,1756235444529,-150.0,0.00024135,2]
[381498330,1756235444538,-250.76948797,0.00024135,2]
[381498331,1756235444548,-150.0,0.00024135,2]
[381498332,1756235444558,-500.0,0.00024135,2]
[381498333,1756235444568,-168.0,0.00024304,2]
[381498334,1756235444578,-1609.0,0.00024316,2]
[381498335,1756235444588,-1008.0,0.00024332,2]
[381498336,1756235444597,-500.0,0.00024356,2]
[381498337,1756235444606,-150.0,0.00024356,2]
[381498338,1756235444615,-500.0,0.00024356,2]
[381498339,1756235444625,-150.0,0.00024356,2]
[381498340,1756235444635,-500.0,0.00024356,2]
[381498341,1756235444645,-500.0,0.00024356,2]
[381498342,1756235444663,-600.0,0.00024356,2]
[381498343,1756235444676,-299.47059111,0.00024384,2]
[381498344,1756235444685,-185.42,0.00024406,2]
[381498345,1756235444697,-150.0,0.00024409,2]
[381498346,1756235444706,-500.0,0.00024409,2]
[381498347,1756235444715,-210.85822734,0.00024409,2]
[381498348,1756235444724,-500.0,0.00024409,2]
[381498349,1756235444733,-500.0,0.00024409,2]
[381498350,1756235444743,-150.0,0.00024409,2]
[381498351,1756235444752,-150.0,0.00024409,2]
[381498352,1756235444761,-500.0,0.00024409,2]
[381498353,1756235444770,-718.0,0.00024416,2]
[381498354,1756235444779,-4155.0,0.00024416,2]
[381498355,1756235444789,-6146.0,0.00024416,2]
[381498356,1756235444798,-21104.0,0.00024416,2]
[381498357,1756235444807,-490.0,0.00024417,2]
[381498358,1756235444817,-1609.0,0.0002459,2]
[381498359,1756235444826,-1008.0,0.00024606,2]
[381498360,1756235444836,-369.88,0.00024616,2]
[381498361,1756235444845,-450.0,0.0002463,2]
[381498362,1756235444855,-200.0,0.0002463,2]
[381498363,1756235444865,-500.0,0.0002463,2]
[381498364,1756235444875,-150.0,0.0002463,2]
[381498365,1756235444884,-500.0,0.0002463,2]
[381498366,1756235444893,-404.6225,0.00024657,2]
[381498367,1756235444902,-1000.0,0.00024658,2]
[381498368,1756235444916,-496.0,0.00024658,2]
[381498369,1756235444925,-150.0,0.00024683,2]
[381498370,1756235444935,-176.47561258,0.00024683,2]
[381498371,1756235444946,-500.0,0.00024683,2]
[381498372,1756235444955,-500.0,0.00024683,2]
[381498373,1756235444964,-150.0,0.00024683,2]
[381498374,1756235444974,-204.13282737,0.00024683,2]
[381498375,1756235444983,-500.0,0.00024683,2]
[381498376,1756235444992,-688.0,0.000247,2]
[381498377,1756235445001,-168.0,0.00024732,2]
[381498378,1756235445012,-255.66,0.00024773,2]
[381498379,1756235445023,-926.0,0.00024846,2]
[381498380,1756235445033,-2031.0,0.00024846,2]
[381498381,1756235445044,-1256.0,0.00024846,2]
[381498382,1756235445055,-1658.0,0.00024846,2]
[381498383,1756235445064,-1298.0,0.00024846,2]
[381498384,1756235445073,-566.0,0.00024846,2]
[381498385,1756235445084,-599.0,0.00024846,2]
[381498386,1756235445094,-1609.0,0.00024864,2]
[381498387,1756235445104,-167.73,0.00024865,2]
[381498388,1756235445115,-150.0,0.00024879,4]
[381498389,1756235445127,-1008.0,0.0002488,2]
[381498390,1756235445136,-1182.23,0.0002489,2]
[381498391,1756235445147,-151.08,0.000249,2]
[381498392,1756235445157,-21863.46546775,0.000249,2]
[381498393,1756235445167,-168.0,0.000249,2]
[381498394,1756235445175,-500.0,0.00024904,2]
[381498395,1756235445184,-257.84538595,0.00024904,2]
[381498396,1756235445193,-500.0,0.00024904,2]
[381498397,1756235445203,-600.0,0.00024904,2]
[381498398,1756235445212,-332.0,0.00024932,7]
[381498399,1756235445222,-503.0,0.00024932,7]
[381498400,1756235445232,-496.0,0.00024932,2]
[381498401,1756235445243,-150.0,0.00024957,2]
[381498402,1756235445252,-500.0,0.00024957,2]
[381498403,1756235445261,-343.56535766,0.00024957,2]
[381498404,1756235445271,-255.61648622,0.00024957,2]
[381498405,1756235445280,-474.52979163,0.00024957,2]
[381498406,1756235445291,-332.0,0.00025,7]
[381498407,1756235445301,-1210.25,0.00025,7]
[381498408,1756235445311,-503.0,0.00025,7]
[381498409,1756235445320,-161.0,0.00025,7]
[381498410,1756235445329,-150.0,0.00025052,4]
[381498411,1756235445338,-168.0,0.00025129,2]
[381498412,1756235445348,-1609.0,0.00025138,2]
[381498413,1756235445357,-1008.0,0.00025154,2]
[381498414,1756235445366,-500.0,0.00025178,2]
[381498415,1756235445375,-500.0,0.00025178,2]
[381498416,1756235445384,-332.0,0.00025205,7]
[381498417,1756235445394,-503.0,0.00025205,7]
[381498418,1756235445405,-496.0,0.00025206,2]
[381498419,1756235445415,-150.0,0.00025225,4]
[381498420,1756235445425,-200.0,0.00025231,2]
[381498421,1756235445434,-500.0,0.00025231,2]